{"text_format":"1","workbook":"xlsx","n_sheets":3,"sheets":["Formato","Instructivo de Diligenciamiento","Listas"],"not_rendered":{"charts":0,"images":3,"macros":1,"external_links":0,"defined_names":3,"comments":1,"pivot_tables":0},"unopened":[],"bounds":{"document_bytes":16777216,"sheet_cells":100000,"rows_first":2000,"rows_last":500,"rows_between":2000,"halvings":0,"cell_chars":16384,"cell_head_chars":4096},"cells_cut":0,"cells_raw":0,"read":"whole","date_system":"1900"}

{"sheet":"Formato","index":0,"n_rows":81,"n_cols":17,"rows_kept":81,"cut":false,"hidden":false,"merged":[[60,10,60,11],[60,16,60,17],[61,2,61,3],[61,8,61,9],[61,10,61,11],[61,16,61,17],[62,2,62,3],[62,8,62,9],[62,10,62,11],[62,16,62,17],[4,4,5,5],[27,6,27,8],[27,9,27,10],[27,11,27,13],[15,3,15,7],[27,4,27,5],[1,1,1,13],[7,1,7,2],[11,1,11,2],[23,9,23,13],[25,1,25,2],[25,4,25,5],[25,6,25,8],[25,9,25,10],[25,11,25,13],[11,3,11,9],[9,10,9,11],[9,12,9,13],[2,1,2,13],[4,1,5,3],[4,10,5,11],[4,7,5,9],[29,9,29,10],[21,1,21,13],[7,3,7,9],[9,1,9,2],[9,3,9,7],[7,12,7,13],[23,1,23,2],[23,4,23,8],[19,1,19,13],[29,1,29,2],[29,11,29,13],[17,1,17,13],[29,4,29,8],[15,1,15,2],[13,1,13,13],[27,1,27,2],[38,2,38,3],[38,16,38,17],[38,10,38,11],[37,10,37,17],[31,6,31,8],[31,11,31,13],[37,1,37,9],[31,1,31,2],[31,4,31,5],[31,9,31,10],[35,0,35,17],[37,0,38,0],[38,8,38,9],[70,8,70,11],[74,1,74,3],[74,11,76,13],[77,11,77,13],[77,1,77,3],[77,6,77,8],[39,16,39,17],[64,6,64,7],[64,8,64,9],[39,10,39,11],[39,2,39,3],[39,8,39,9],[40,2,40,3],[40,8,40,9],[40,10,40,11],[40,16,40,17],[41,2,41,3],[41,8,41,9],[41,10,41,11],[41,16,41,17],[42,2,42,3],[42,8,42,9],[60,2,60,3],[60,8,60,9],[42,10,42,11],[42,16,42,17],[43,2,43,3],[43,8,43,9],[43,10,43,11],[43,16,43,17],[79,10,80,14],[79,1,79,3],[79,6,79,8],[80,1,80,3],[80,4,80,5],[80,6,80,8],[67,0,67,17],[71,1,71,4],[71,5,71,7],[71,8,71,11],[72,1,72,4],[72,5,72,7],[72,8,72,11],[69,1,69,4],[69,5,69,7],[69,8,69,11],[70,1,70,4],[70,5,70,7],[46,2,46,3],[46,8,46,9],[46,10,46,11],[46,16,46,17],[47,2,47,3],[47,8,47,9],[47,10,47,11],[47,16,47,17],[44,2,44,3],[44,8,44,9],[44,10,44,11],[44,16,44,17],[45,2,45,3],[45,8,45,9],[45,10,45,11],[45,16,45,17],[50,2,50,3],[50,8,50,9],[50,10,50,11],[50,16,50,17],[51,2,51,3],[51,8,51,9],[51,10,51,11],[51,16,51,17],[48,2,48,3],[48,8,48,9],[48,10,48,11],[48,16,48,17],[49,2,49,3],[49,8,49,9],[49,10,49,11],[49,16,49,17],[54,2,54,3],[54,8,54,9],[54,10,54,11],[54,16,54,17],[55,2,55,3],[55,8,55,9],[55,10,55,11],[55,16,55,17],[52,2,52,3],[52,8,52,9],[52,10,52,11],[52,16,52,17],[53,2,53,3],[53,8,53,9],[53,10,53,11],[53,16,53,17],[58,2,58,3],[58,8,58,9],[58,10,58,11],[58,16,58,17],[59,2,59,3],[59,8,59,9],[59,10,59,11],[59,16,59,17],[56,2,56,3],[56,8,56,9],[56,10,56,11],[56,16,56,17],[57,2,57,3],[57,8,57,9],[57,10,57,11],[57,16,57,17]]}
[]
[null,"FORMATO PARA MODIFICACIÓN DE ÓRDENES DE COMPRA"]
[null,"Tienda Virtual del Estado Colombiano"]
[]
[null,"Número de Orden de Compra a modificar:",null,null,4405,null,null,"Número de modificación de la Orden de Compra:",null,null,1]
[]
[]
[null,"Entidad Compradora:",null,"Dirección de Impuestos y Aduanas Nacionales DIAN",null,null,null,null,null,null,null,"NIT:",800197268]
[]
[null,"Nombre del solicitante:",null,"Diego Armando Chitiva Sánchez ",null,null,null,null,null,null,"Teléfono de contacto:",null,"6079800 ext. 902701"]
[]
[null,"Proveedor :",null,"Emtelco SAS"]
[]
[null,"Sección 1: Tipo de acción"]
[]
[null,"Tipo",null,"Modificación de Orden de Compra"]
[]
[null,"Sección 2: Justificación de la modificación o de las acciones a realizar"]
[]
[null,"La modificación garantiza la atención oportuna de la creciente demanda de consultas formuladas por los clientes a través de los canales telefónico y virtual, en la prestación del servicio como lo son: los vencimientos de Renta Persona Jurídica y Grandes Contribuyentes, así como los cambios inherentes a la reforma tributaria, esta continuidad contribuye a garantizar la normal prestación del servicio en momentos coyunturales de alto impacto para la DIAN, así como el fortalecimiento de la imagen institucional a través de la percepción oportunidad y eficacia en la atención de consultas y la posibilidad de reacción en materia de atención y servicio ante posibles circunstancias de contingencia asociadas al funcionamiento de los servicios en línea de la Entidad, es importante resaltar que las tarifas y costos incrementan de acuerdo a los establecido en el contrato actual."]
[]
[null,"Sección 3:  Modificación información general"]
[]
[null,"Nombre del campo",null,"¿Requiere modificación Si/No?","Datos actuales",null,null,null,null,"Nuevos datos"]
[]
[null,"Actualizar supervisor",null,"NO","Nombre del supervisor actual",null,0,null,null,"Nombre nuevo supervisor"]
[]
[null,"Dirección y/o teléfono Supervisor",null,"NO","Teléfono actual supervisor",null,0,null,null,"Teléfono nuevo supervisor"]
[]
[null,"Fecha de vencimiento",null,"Ampliar fecha","   La fecha vencimiento actual se tomará de la TVEC al momento del cambio",null,null,null,null,"Nueva fecha de vencimiento",null,"2018-07-31"]
[]
[null,"Dirección y/o teléfono Entidad",null,"NO","Dirección / teléfono actual Entidad",null,0,null,null,"Nueva dirección / teléfono Entidad"]
[]
[]
[]
["Sección 4: Modificación de artículos y servicios"]
[]
["Tipo de modificación","Información actual",null,null,null,null,null,null,null,null,"Nueva información"]
[null,"Número de la línea según O.C.","Nombre del artículo",null,"Cantidad","Unidad de medida","Precio unitario","Total","Información presupuestal",null,"Nombre del artículo",null,"Cantidad","Unidad de medida","Precio unitario","Total","Información presupuestal"]
["Modificación de artículo o servicio",1,"84 - Agente con puesto de trabajo-Agente profesional_Mes_Alta-Oro - 162 Und ",null,24,"mes",688713558,{"$f":"ROUND(E40*G40, 2)","v":16529125392},"CDP1317 ",null,{"$f":"C40","v":"84 - Agente con puesto de trabajo-Agente profesional_Mes_Alta-Oro - 162 Und "},null,32.130000000000003,"mes",688713558,{"$f":"ROUND(M40*O40, 2)","v":22128366618.540001},"CDP 1317 y VF 2-2017-039638"]
["Modificación de artículo o servicio",3,"684 - Agente Minero de Datos - Agente profesional_Mes_Alta-Oro-1 Und",null,24,"mes",4411909,105885816,"CDP1317 ",null,"684 - Agente Minero de Datos - Agente profesional_Mes_Alta-Oro-1 Und",null,32.130000000000003,"mes",4411909,141754636.16999999,"CDP 1317 y VF 2-2017-039638"]
["Modificación de artículo o servicio",4,"1522 - Coordinador Nacional-__-Plata/Oro- 1 Und",null,24,"mes",6798045,163153080,"CDP1317 ",null,"1522 - Coordinador Nacional-__-Plata/Oro- 1 Und",null,32.130000000000003,"mes",6798045,218421185.84999999,"CDP 1317 y VF 2-2017-039638"]
["Modificación de artículo o servicio",5,"1521 - Gerente de Proyecto-__-Plata Oro- 1 Und ",null,24,"mes",11867854,284828496,"CDP1317 ",null,"1521 - Gerente de Proyecto-__-Plata Oro- 1 Und ",null,32.130000000000003,"mes",11867854,381314149.01999998,"CDP 1317 y VF 2-2017-039638"]
["Modificación de artículo o servicio",6,"1480 - Gestion de Redes Sociales-Agente profesional_Mes_Alta-Oro - 2 Und",null,24,"mes",11991997,287807928,"CDP1317 ",null,"1480 - Gestion de Redes Sociales-Agente profesional_Mes_Alta-Oro - 2 Und",null,32.130000000000003,"mes",11991997,385302863.61000001,"CDP 1317 y VF 2-2017-039638"]
["Modificación de artículo o servicio",7,"1308 - Grabación anuncios IVR -__-Oro - 25 Anuncio para IVR",null,24,"mes",70154,1683696,"CDP1317 ",null,"1308 - Grabación anuncios IVR -__-Oro - 25 Anuncio para IVR",null,32.130000000000003,"mes",70154,2254048.02,"CDP 1317 y VF 2-2017-039638"]
["Modificación de artículo o servicio",8,"1306 - Hora desarrollo (IVR transccional u otros)-__-Oro - 173 Minuto",null,24,"mes",3790603,{"$f":"ROUND(E46*G46, 2)","v":90974472},"CDP1317 ",null,{"$f":"C46","v":"1306 - Hora desarrollo (IVR transccional u otros)-__-Oro - 173 Minuto"},null,32.130000000000003,"mes",3790603,{"$f":"ROUND(M46*O46, 2)","v":121792074.39},"CDP 1317 y VF 2-2017-039638"]
["Modificación de artículo o servicio",9,"1302 - IVR Transaccional -__- Oro - 34632 Minuto",null,24,"mes",4364685,104752440,"CDP1317 ",null,"1302 - IVR Transaccional -__- Oro - 34632 Minuto",null,32.130000000000003,"mes",4364685,140237329.05000001,"CDP 1317 y VF 2-2017-039638"]
["Modificación de artículo o servicio",10,"1298 - Minuto IVR Enrutador -__-  Oro - 127929 Minuto",null,24,"mes",255858,6140592,"CDP1317 ",null,"1298 - Minuto IVR Enrutador -__-  Oro - 127929 Minuto",null,32.130000000000003,"mes",255858,8220717.54,"CDP 1317 y VF 2-2017-039638"]
["Modificación de artículo o servicio",11,"1300 - Minuto IVR Audiotexto -__- Oro - 53304 Minuto",null,24,"mes",4831640,115959360,"CDP1317 ",null,"1300 - Minuto IVR Audiotexto -__- Oro - 53304 Minuto",null,32.130000000000003,"mes",4831640,155240593.19999999,"CDP 1317 y VF 2-2017-039638"]
["Modificación de artículo o servicio",12,"1313 - Mensaje SMS - Claro -__- Oro - 105179 Mensaje SMS",null,24,"mes",3576086,85826064,"CDP1317 ",null,"1313 - Mensaje SMS - Claro -__- Oro - 105179 Mensaje SMS",null,32.130000000000003,"mes",3576086,114899643.18000001,"CDP 1317 y VF 2-2017-039638"]
["Modificación de artículo o servicio",13,"1314- Mensaje SMS - Movistar -__- Oro - 36680 Mensaje SMS",null,24,"mes",1247120,29930880,"CDP1317 ",null,"1314- Mensaje SMS - Movistar -__- Oro - 36680 Mensaje SMS",null,32.130000000000003,"mes",1247120,40069965.600000001,"CDP 1317 y VF 2-2017-039638"]
["Modificación de artículo o servicio",14,"1316- Mensaje SMS - Otros Operadores -__- Oro - 57 Mensaje SMS",null,24,"mes",1938,46512,"CDP1317 ",null,"1316- Mensaje SMS - Otros Operadores -__- Oro - 57 Mensaje SMS",null,32.130000000000003,"mes",1938,62267.94,"CDP 1317 y VF 2-2017-039638"]
["Modificación de artículo o servicio",15,"1315- Mensaje SMS - Tigo -__- Oro - 17821  Mensaje SMS",null,24,"mes",605914,14541936,"CDP1317 ",null,"1315- Mensaje SMS - Tigo -__- Oro - 17821  Mensaje SMS",null,32.130000000000003,"mes",605914,19468016.82,"CDP 1317 y VF 2-2017-039638"]
["Modificación de artículo o servicio",16,"1210 - Transacción campaña Transaccion efectiva- Agente profesional__Alta-Oro- 17000 Transacción efectiva",null,24,"mes",17314673,415552152,"CDP1317 ",null,"1210 - Transacción campaña Transaccion efectiva- Agente profesional__Alta-Oro- 17000 Transacción efectiva",null,32.130000000000003,"mes",17314673,556320443.49000001,"CDP 1317 y VF 2-2017-039638"]
["Modificación de artículo o servicio",17,"1324 - VPN sobre Internet a Centro de Contacto o Entidad Compradora -__- Oro- 1 Und",null,24,"mes",2796992,67127808,"CDP1317 ",null,"1324 - VPN sobre Internet a Centro de Contacto o Entidad Compradora -__- Oro- 1 Und",null,32.130000000000003,"mes",2796992,89867352.959999993,"CDP 1317 y VF 2-2017-039638"]
["Modificación de artículo o servicio",18,"80 - Agente con puesto de trabajo-Agente profesional__Hora Extra diurna_ Alta-Oro- 640 Hora",null,24,"mes",17759280,426222720,"CDP1317 ",null,"80 - Agente con puesto de trabajo-Agente profesional__Hora Extra diurna_ Alta-Oro- 640 Hora",null,32.130000000000003,"mes",17759280,570605666.39999998,"CDP 1317 y VF 2-2017-039638"]
["Modificación de artículo o servicio",19,"564- Agente Front office sin herramienta- Agente profesional_Mes_Alta-Oro - 95 Und",null,16,"mes",358373820,5733981120,"CDP1317 ",null,"564- Agente Front office sin herramienta- Agente profesional_Mes_Alta-Oro - 95 Und",null,17,"mes",358373820,6092354940,"CDP 1317 y VF 2-2017-039638"]
["Modificación de artículo o servicio",21,"560 -  Agente Front office sin herramienta- Agente profesional_Hora_Extra diurna_Alta-Oro - 360 Hora",null,16,"mes",8975520,143608320,"CDP1317 ",null,"560 -  Agente Front office sin herramienta- Agente profesional_Hora_Extra diurna_Alta-Oro - 360 Hora",null,17,"mes",8975520,152583840,"CDP 1317 y VF 2-2017-039638"]
["Modificación de artículo o servicio",23,"1326 - Servicio adicional de entrenamiento hasta 4 horas-__-Oro-520 Entrenamiento por agente",null,24,"mes",31289972,750959328,"CDP1317 ",null,"1326 - Servicio adicional de entrenamiento hasta 4 horas-__-Oro-520 Entrenamiento por agente",null,32.130000000000003,"mes",31289972,1005346800.36,"CDP 1317 y VF 2-2017-039638"]
["Modificación de artículo o servicio",24,"372- Agente Back office sin herramienta-Agente profesional_Mes_Alta-Oro - 2 Und",null,24,"mes",9009888,216237312,"CDP1317 ",null,"372- Agente Back office sin herramienta-Agente profesional_Mes_Alta-Oro - 2 Und",null,32.130000000000003,"mes",9009888,289487701.44,"CDP 1317 y VF 2-2017-039638"]
["Modificación de artículo o servicio",2,"636-Agente Bilingüe-Agente profesional_Mes_Alta_Oro-2 Und",null,24,"mes",10156198,243748752,"CDP1317 ",null,"636-Agente Bilingüe-Agente profesional_Mes_Alta_Oro-2 Und",null,32.130000000000003,"mes",10156198,326318641.74000001,"CDP 1317 y VF 2-2017-039638"]
["Modificación de artículo o servicio",20,"564 - Agente Front office sin herramienta -Agente profesional_Mes_Alta-Oro - 5 Und",null,16,"mes",18861780,301788480,"CDP1317 ",null,"564 - Agente Front office sin herramienta -Agente profesional_Mes_Alta-Oro - 5 Und",null,17,null,18861780,320650260,"CDP 1317 y VF 2-2017-039638"]
["Modificación de artículo o servicio",22,"560-Agente Front office sin herramienta-Agente profesional_Hora Extra diurna_Alta-Oro - 40 Hora",null,16,"mes",997280,15956480,"CDP1317 ",null,"560-Agente Front office sin herramienta-Agente profesional_Hora Extra diurna_Alta-Oro - 40 Hora",null,17,null,997280,16953760,"CDP 1317 y VF 2-2017-039638"]
[]
[null,null,null,null,null,null,"Cantidad de celdas a agregar:",null,1]
[]
[]
["Sección 5: Resultados de la modificación"]
[]
["Número de la línea según O.C.","Nombre del artículo",null,null,null,"Valores actuales",null,null,"Nuevos valores"]
[25,"Valor de la línea IVA en la Orden de Compra:",null,null,null,4181736400,null,null,6322799768,null,null,null,0]
[null,"Valor de la línea AIU en la Orden de Compra:"]
[null,"Valor de la línea gravámenes adicionales en la Orden de Compra:"]
[]
[null,null,null,null,null,null,null,null,null,null,null,"2017-11-24"]
[]
[]
[null,"Firma ordenador del gasto",null,null,null,null,"Firma de Proveedor",null,null,null,null,"Fecha de elaboración"]
[]
["Nombre:","diego chitiva sanchez",null,null,null,"Nombre:","maritza moreno",null,null,null,"Las partes manifestamos que este mismo documento se cargará en la plataforma en formato Excel (.xlsm) y los cambios se pueden validar con el mismo."]
["Documento de Identidad:",null,null,null,"Documento de Identidad:"]

{"sheet":"Instructivo de Diligenciamiento","index":1,"n_rows":4,"n_cols":2,"rows_kept":4,"cut":false,"hidden":false,"merged":[[3,1,82,10]]}
[]
[]
[]
[null,"Instrucciones de diligenciamiento:\n\nColombia Compra Eficiente ha diseñado este formato para que las Entidades Compradoras puedan realizar aclaraciones, modificaciones, cancelaciones o terminaciones y liquidaciones de las Órdenes de Compra que estén en ejecución y vigentes, o ejecutadas. Para ello debe indicar:\n\nDatos generales: Datos básicos como número de la Orden de Compra que requiere cambiar, número consecutivo de solicitud tenga en cuenta que la primera solicitud corresponderá a la número “1”, nombre de la Entidad Compradora, nombre de la persona que solicita las acciones, celular o número de teléfono y extensión, NIT de la Entidad Compradora y el nombre del Proveedor que ejecuta la Orden de Compra.\n\nSección 1. Tipo de acción: Las Entidades pueden solicitar cuatro tipos de acciones respecto de las Órdenes de Compra:\n\n(i) Aclaraciones: Son las indicaciones de cambio de información que no afectan el plazo, el valor o las condiciones contractuales de las Órdenes de Compra como: redacción en las condiciones de entrega, errores de digitación  o rectificación de la fecha de vencimiento. Estas aclaraciones no requieren de la aceptación del Proveedor. Sin embargo una vez realizada la aclaración en la Orden de Compra, la Entidad Compradora debe notificarle al Proveedor el cambio. \n\n(ii) Modificaciones: Son indicaciones de cambio en aumento o disminución de valor o plazo,  aumento o disminución de los bienes o servicios solicitados, cambios en las condiciones de ejecución o datos que afecten la ejecución de la Orden de Compra. Solo en los casos de cambio de supervisor y datos de notificación como dirección o teléfono se puede omitir la firma del Proveedor. Sin embargo una vez realizada la modificación, la Entidad Compradora debe notificarle al Proveedor el cambio.\n\n(iii) Terminación: Puede darse por 2 razones, (i) por manifestación de la Entidad de no iniciar la ejecución de la Orden de Compra la cual también debe ser aceptada por el Proveedor y (ii) por mutuo acuerdo entre las partes de terminar anticipadamente la Orden de Compra.\n\n(iv) Liquidación: Este tipo de acción es mediante la cual una Entidad Compradora formaliza la liquidación de las obligaciones derivadas de la Orden de Compra y así establece las acreencias pendientes a favor o en contra de cada parte de la Orden de Compra, también sirve para aclarar la ejecución de la misma. Este tipo de acción se debe aplicar dentro de los términos establecidos en cada Acuerdo Marco, para lo cual se requiere la solicitud por parte de la Entidad Compradora firmada por el Ordenador del Gasto y el representante legal del Proveedor, así como el informe del supervisor de la Orden de Compra. \n\nSección 2.  Justificación: Las razones de la realización del cambio de la Orden de Compra.\n\nSección 3. Modificación información general: la idea en esta sección es indicar cuales son los datos de información general de la orden de compra que requiere cambiar\n\nSección 4. Modificación de artículos o servicios: esta sección unicamente aplica en caso de que la acción a realizar sea modificar, terminar o liquidar la orden de compra, allí deberá indicar el tipo de modificación que desea realizar e ingresar o modificar los articulos que desea ajustar. Al momento de diligenciar esta sección tenga en cuenta las siguientes recomendaciones:\n\n(i) Las correcciones en el plazo de ejecución son diferentes a las modificaciones en el plazo, ejemplo: la Entidad Compradora adquirió elementos con tres entregas parciales pero digitó como fecha final de la Orden de Compra la fecha de la primera entrega, para corregir esto la Entidad Compradora selecciona en tipo de acción: aclaración y en el campo de fecha de vencimiento indica la fecha correcta. En el caso que fuera cambio de fecha fin, ejemplo: prorrogar o disminuir varios meses la ejecución de la Orden de Compra se utiliza en tipo de acción: modificación.\n\n(ii) para la realización de las modificaciones tenga en cuenta las secciones de modificación de cada una de las guías de compra\n\n(iii) los valores y cantidades solo pueden tener hasta dos decimales.\n\n(iv) la decisión de modificar, adicionar o combinar las dos opciones dependerá de las necesidades de cada Entidad Compradora, ejemplo si es un servicio y adicionalmente solo requiere modificar “cantidad” se recomienda seleccionar “modificación de artículo”, cuando son bienes puede modificar cualquiera de los demás campos.\n\n(v) si requiere cambio de condiciones de un servicio ya ejecutado se recomienda modificar la línea para que se refleje la parte ejecutada y adicionar una nueva línea para las nuevas condiciones del servicio que va a ejecutar.\n\nSección 5. Resultados de la modificación: La entidad siempre debe indicar en el recuadro el valor total del IVA, AIU, gravámenes adicionales, estos campos serán los valores finales que quedarán en la Orden de Compra después de la modificación, tenga en cuenta que el campo de IVA no aplica para algunos AMP como: papelería, vehículos y SOAT y que el campo de AIU solo aplica para aseo y cafetería.\n\nFirmas del documento: El ordenador del gasto de la Entidad Compradora debe firmar el documento y enviarlo al Proveedor para que lo acepte y firme, en caso de que así se requiera. El documento firmado debe ser enviado a través del aplicativo dispuesto por   Colombia Compra Eficiente para realizar las acciones solicitadas.\n\nFecha de elaboración del documento: Corresponde a la fecha en la que la Entidad Compradora y el Proveedor llegaron a un acuerdo para realizar las acciones y se suscribe el documento, recuerde que: (i) para poder realizar modificaciones en las Órdenes de Compra las mismas se deben acordar dentro de la vigencia de la Orden de Compra, (ii) Las órdenes de compra no se podrán modificar si ya se encuentran vencidas, (iii) Se da por realizada la modificación o acción que requiera realizar la Entidad, desde le momento en que las partes la firmen. Colombia Compra Eficiente lo único que realiza en la Tienda Virtual es el proceso de publicación de la modificación o ajuste que las partes hayan acordado a través de la firma de este documento. \n\nSi la Entidad Compradora requiere agregar archivos que estén relacionados con las acciones a realizar como: copia del CDP y/o aprobación de Vigencia Futura (VF) que soporta la adición, soportes documentales, correos, cartas, etc... debe publicarlos junto con el documento de modificación suscrito en un único archivo .Pdf con alta resolución de escaneo, si el documento no es legible se tomaran los cambios contenidos en el formato Excel, tenga en cuenta que Colombia Compra Eficiente únicamente publicará las modificaciones especificadas en el formato enviado por el aplicativo.\n\n"]

{"sheet":"Listas","index":2,"n_rows":5,"n_cols":3,"rows_kept":5,"cut":false,"hidden":true,"merged":[]}
["TipoDeModificacion",null,"Modificacion"]
["Modificación de Orden de Compra",null,"Modificación de artículo o servicio"]
["Aclaración a la Orden de Compra",null,"Agregar nuevo artículo o servicio"]
["Terminación de orden de compra",null,"Eliminar artículo o servicio"]
["Liquidación de Orden de Compra",null,"Ninguna"]